[Event "*** Titled Tuesday Blitz"]
[Site "Chess.com"]
[Date "2020.10.27"]
[Round "8"]
[White "Blitzstream"]
[Black "eljanov"]
[Result "0-1"]
[WhiteElo "2717"]
[BlackElo "2871"]
[TimeControl "180+1"]
[EndTime "11:29:24 PDT"]
[Termination "eljanov won by resignation"]

1. d4 {[%clk 0:03:00.9]} 1... Nf6 {[%clk 0:02:59.7]} 2. Bg5 {[%clk 0:03:00.7]}
2... d5 {[%clk 0:02:58.1]} 3. Nd2 {[%clk 0:03:00.5]} 3... e6 {[%clk 0:02:47.4]}
4. e3 {[%clk 0:02:57.7]} 4... c5 {[%clk 0:02:43.9]} 5. c3 {[%clk 0:02:57.5]}
5... Nc6 {[%clk 0:02:43.4]} 6. f4 {[%clk 0:02:57.2]} 6... h6 {[%clk 0:02:34.1]}
7. Bh4 {[%clk 0:02:56]} 7... cxd4 {[%clk 0:02:29.8]} 8. cxd4 {[%clk 0:02:50.4]}
8... Be7 {[%clk 0:02:11.1]} 9. Ngf3 {[%clk 0:02:50.3]} 9... g5 {[%clk
0:02:07.2]} 10. fxg5 {[%clk 0:02:38.8]} 10... Ne4 {[%clk 0:01:50.7]} 11. Nxe4
{[%clk 0:02:31.5]} 11... dxe4 {[%clk 0:01:50.8]} 12. Nd2 {[%clk 0:02:31.5]}
12... hxg5 {[%clk 0:01:29.6]} 13. Bf2 {[%clk 0:02:24.7]} 13... f5 {[%clk
0:01:27.4]} 14. Qb3 {[%clk 0:02:23.6]} 14... Qb6 {[%clk 0:01:11.2]} 15. Qxb6
{[%clk 0:01:55.1]} 15... axb6 {[%clk 0:01:12.1]} 16. Bb5 {[%clk 0:01:55.1]}
16... Bd7 {[%clk 0:01:08.2]} 17. Nc4 {[%clk 0:01:55.1]} 17... Ne5 {[%clk
0:00:47.3]} 18. Bxd7+ {[%clk 0:01:32.7]} 18... Nxd7 {[%clk 0:00:48.2]} 19. Ke2
{[%clk 0:01:23.6]} 19... Kf7 {[%clk 0:00:47.3]} 20. h3 {[%clk 0:01:20]} 20...
Rhc8 {[%clk 0:00:42.4]} 21. Nd2 {[%clk 0:00:44]} 21... Rc2 {[%clk 0:00:41.2]}
22. Rhb1 {[%clk 0:00:43.8]} 22... Bb4 {[%clk 0:00:39.4]} 23. Be1 {[%clk
0:00:43.5]} 23... Nf6 {[%clk 0:00:34.2]} 24. Kd1 {[%clk 0:00:43.4]} 24... Rac8
{[%clk 0:00:34.3]} 25. a3 {[%clk 0:00:35.3]} 25... Bd6 {[%clk 0:00:26.8]} 26.
Rc1 {[%clk 0:00:32.7]} 26... Nd5 {[%clk 0:00:26.8]} 27. Bf2 {[%clk 0:00:26.4]}
27... Rxc1+ {[%clk 0:00:21.5]} 28. Rxc1 {[%clk 0:00:27.3]} 28... Rxc1+ {[%clk
0:00:21.1]} 29. Kxc1 {[%clk 0:00:28.2]} 29... b5 {[%clk 0:00:20.8]} 30. Nb3
{[%clk 0:00:20.3]} 30... f4 {[%clk 0:00:19.9]} 31. Kd2 {[%clk 0:00:17.9]} 31...
Kf6 {[%clk 0:00:19.5]} 32. Ke2 {[%clk 0:00:17.6]} 32... Kf5 {[%clk 0:00:19.3]}
33. Nd2 {[%clk 0:00:14.2]} 33... fxe3 {[%clk 0:00:15.2]} 34. Bxe3 {[%clk
0:00:13.7]} 34... Nxe3 {[%clk 0:00:15]} 35. Kxe3 {[%clk 0:00:13.6]} 35... Bf4+
{[%clk 0:00:15.2]} 36. Ke2 {[%clk 0:00:14]} 36... Bxd2 {[%clk 0:00:15]} 37. Kxd2
{[%clk 0:00:14.4]} 37... Kf4 {[%clk 0:00:15.3]} 38. Ke2 {[%clk 0:00:13.9]} 38...
e3 {[%clk 0:00:14.9]} 39. b3 {[%clk 0:00:03.6]} 39... Kg3 {[%clk 0:00:12.9]} 40.
Kxe3 {[%clk 0:00:02.5]} 40... Kxg2 {[%clk 0:00:13.3]} 41. Ke4 {[%clk 0:00:03.2]}
41... Kxh3 {[%clk 0:00:13.6]} 42. d5 {[%clk 0:00:03.6]} 42... exd5+ {[%clk
0:00:13.2]} 0-1

[Event "*** Titled Tuesday Blitz"]
[Site "Chess.com"]
[Date "2020.10.27"]
[Round "8"]
[White "aleksey1203borisovi4"]
[Black "marabu44"]
[Result "1-0"]
[WhiteElo "2504"]
[BlackElo "2269"]
[TimeControl "180+1"]
[EndTime "11:29:24 PDT"]
[Termination "aleksey1203borisovi4 won by resignation"]

1. g3 {[%clk 0:02:59.3]} 1... d5 {[%clk 0:02:59.2]} 2. Bg2 {[%clk 0:02:59.2]}
2... Nf6 {[%clk 0:02:59.1]} 3. d3 {[%clk 0:02:58]} 3... c6 {[%clk 0:02:53.8]} 4.
Nc3 {[%clk 0:02:57]} 4... Bf5 {[%clk 0:02:50.8]} 5. Bg5 {[%clk 0:02:56.3]} 5...
Nbd7 {[%clk 0:02:48.2]} 6. e4 {[%clk 0:02:52.4]} 6... Bg4 {[%clk 0:02:34.4]} 7.
Nge2 {[%clk 0:02:49.7]} 7... dxe4 {[%clk 0:02:31.5]} 8. dxe4 {[%clk 0:02:34.3]}
8... e5 {[%clk 0:02:30.4]} 9. O-O {[%clk 0:02:33.1]} 9... Be7 {[%clk 0:02:25.6]}
10. h3 {[%clk 0:02:29.8]} 10... Be6 {[%clk 0:02:19.8]} 11. Be3 {[%clk
0:02:26.1]} 11... Bc5 {[%clk 0:02:17.9]} 12. Qc1 {[%clk 0:02:24.2]} 12... Bxe3
{[%clk 0:02:16.5]} 13. Qxe3 {[%clk 0:02:25.1]} 13... Qb6 {[%clk 0:02:16.7]} 14.
Qxb6 {[%clk 0:02:24.3]} 14... axb6 {[%clk 0:02:16.2]} 15. a3 {[%clk 0:02:23.6]}
15... Bc4 {[%clk 0:02:03.3]} 16. Rfe1 {[%clk 0:02:22.4]} 16... Nc5 {[%clk
0:01:59.1]} 17. f4 {[%clk 0:02:20.2]} 17... Nfd7 {[%clk 0:01:57]} 18. Kf2 {[%clk
0:02:14.7]} 18... f6 {[%clk 0:01:55.9]} 19. Ke3 {[%clk 0:02:13.6]} 19... O-O-O
{[%clk 0:01:52.5]} 20. Bf3 {[%clk 0:02:09.4]} 20... Kc7 {[%clk 0:01:51.5]} 21.
Bg4 {[%clk 0:02:03.4]} 21... Be6 {[%clk 0:01:50.5]} 22. Bxe6 {[%clk 0:02:01.3]}
22... Nxe6 {[%clk 0:01:50]} 23. f5 {[%clk 0:01:56.2]} 23... Nd4 {[%clk
0:01:40.7]} 24. Nxd4 {[%clk 0:01:39.4]} 24... exd4+ {[%clk 0:01:40.2]} 25. Kxd4
{[%clk 0:01:40.3]} 25... Ne5+ {[%clk 0:01:39.7]} 26. Ke3 {[%clk 0:01:38.5]}
26... Nc4+ {[%clk 0:01:39.2]} 27. Kf4 {[%clk 0:01:38.5]} 27... Nxb2 {[%clk
0:01:38.8]} 28. e5 {[%clk 0:01:19.7]} 28... Rd4+ {[%clk 0:01:34.4]} 29. Re4
{[%clk 0:01:17]} 29... fxe5+ {[%clk 0:01:29.1]} 30. Kxe5 {[%clk 0:01:16]} 30...
Rxe4+ {[%clk 0:01:26.9]} 31. Nxe4 {[%clk 0:01:11.5]} 31... Re8+ {[%clk
0:01:24.3]} 32. Kf4 {[%clk 0:01:10]} 32... Nc4 {[%clk 0:01:22.5]} 33. g4 {[%clk
0:01:01.8]} 33... h6 {[%clk 0:01:08.6]} 34. h4 {[%clk 0:01:01]} 34... Ne5 {[%clk
0:01:01.5]} 35. g5 {[%clk 0:00:58.7]} 35... hxg5+ {[%clk 0:01:00.3]} 36. hxg5
{[%clk 0:00:59.6]} 36... Nf7 {[%clk 0:00:51.7]} 37. Rh1 {[%clk 0:00:55.5]} 37...
Nd6 {[%clk 0:00:45.4]} 38. Nxd6 {[%clk 0:00:48.2]} 38... Kxd6 {[%clk 0:00:45.1]}
39. Rh7 {[%clk 0:00:45.8]} 39... Rg8 {[%clk 0:00:43.8]} 40. g6 {[%clk
0:00:31.7]} 40... b5 {[%clk 0:00:39.2]} 41. f6 {[%clk 0:00:26]} 41... gxf6
{[%clk 0:00:36.7]} 42. Kf5 {[%clk 0:00:25.9]} 42... b6 {[%clk 0:00:35.7]} 43.
Kxf6 {[%clk 0:00:21.6]} 43... c5 {[%clk 0:00:30.1]} 44. g7 {[%clk 0:00:17.9]}
44... Kd5 {[%clk 0:00:20.1]} 45. Rh3 {[%clk 0:00:18.8]} 45... Kc4 {[%clk
0:00:15.7]} 46. Kf7 {[%clk 0:00:19]} 46... b4 {[%clk 0:00:16.2]} 47. Kxg8 {[%clk
0:00:18.1]} 1-0

[Event "*** Titled Tuesday Blitz"]
[Site "Chess.com"]
[Date "2020.10.27"]
[Round "8"]
[White "BlackBoarder"]
[Black "svilson23"]
[Result "0-1"]
[WhiteElo "2563"]
[BlackElo "2393"]
[TimeControl "180+1"]
[EndTime "11:29:24 PDT"]
[Termination "svilson23 won on time"]

1. e4 {[%clk 0:03:00.9]} 1... b6 {[%clk 0:02:48.1]} 2. d4 {[%clk 0:03:00.3]}
2... Bb7 {[%clk 0:02:48.7]} 3. Bd3 {[%clk 0:02:59.8]} 3... e6 {[%clk 0:02:49.4]}
4. Nf3 {[%clk 0:02:58.4]} 4... c5 {[%clk 0:02:44.3]} 5. c3 {[%clk 0:02:56]} 5...
d5 {[%clk 0:02:41.7]} 6. e5 {[%clk 0:02:55.4]} 6... Ne7 {[%clk 0:02:28.9]} 7.
O-O {[%clk 0:02:54.6]} 7... Ng6 {[%clk 0:02:26.8]} 8. a3 {[%clk 0:02:23.5]} 8...
Be7 {[%clk 0:02:26.7]} 9. g3 {[%clk 0:02:20.2]} 9... O-O {[%clk 0:02:24.4]} 10.
h4 {[%clk 0:02:18.5]} 10... f5 {[%clk 0:02:18.4]} 11. exf6 {[%clk 0:02:05.5]}
11... Bxf6 {[%clk 0:02:18.3]} 12. Bxg6 {[%clk 0:01:58.6]} 12... hxg6 {[%clk
0:02:18.8]} 13. Re1 {[%clk 0:01:47.5]} 13... cxd4 {[%clk 0:02:09.4]} 14. cxd4
{[%clk 0:01:46.6]} 14... Nc6 {[%clk 0:01:41.5]} 15. Nc3 {[%clk 0:01:36]} 15...
Qd7 {[%clk 0:01:39.3]} 16. Bf4 {[%clk 0:01:30.7]} 16... Rae8 {[%clk 0:01:38.4]}
17. Qd3 {[%clk 0:01:14.4]} 17... Ne7 {[%clk 0:01:08.5]} 18. Ne5 {[%clk
0:00:50.6]} 18... Bxe5 {[%clk 0:01:08.9]} 19. Rxe5 {[%clk 0:00:49.8]} 19... Nf5
{[%clk 0:01:06.8]} 20. Bg5 {[%clk 0:00:39.8]} 20... Qc8 {[%clk 0:01:02.7]} 21.
Rae1 {[%clk 0:00:36.5]} 21... Ba6 {[%clk 0:00:53.3]} 22. Qd2 {[%clk 0:00:30.1]}
22... Qc4 {[%clk 0:00:53.7]} 23. Ne2 {[%clk 0:00:24]} 23... Nd6 {[%clk
0:00:41.8]} 24. Nc3 {[%clk 0:00:18.1]} 24... Nf5 {[%clk 0:00:39.4]} 25. Be3
{[%clk 0:00:13.4]} 25... Kh7 {[%clk 0:00:21.6]} 26. Ne2 {[%clk 0:00:11.1]} 26...
Nd6 {[%clk 0:00:20.5]} 27. Nf4 {[%clk 0:00:09]} 27... Ne4 {[%clk 0:00:19.7]} 28.
Qc1 {[%clk 0:00:08.4]} 28... Rf6 {[%clk 0:00:18.5]} 29. Qxc4 {[%clk 0:00:07.6]}
29... Bxc4 {[%clk 0:00:18.8]} 30. Kh2 {[%clk 0:00:04.2]} 30... Kg8 {[%clk
0:00:18.4]} 31. f3 {[%clk 0:00:04.4]} 31... Nd6 {[%clk 0:00:16.9]} 32. Bd2
{[%clk 0:00:02.6]} 32... Kf7 {[%clk 0:00:14.1]} 33. Kg2 {[%clk 0:00:02.6]} 33...
Nf5 {[%clk 0:00:13.4]} 34. Bc3 {[%clk 0:00:02.1]} 34... Nxh4+ {[%clk 0:00:11.6]}
35. Kf2 {[%clk 0:00:01.9]} 35... g5 {[%clk 0:00:10.8]} 36. Nh3 {[%clk 0:00:02]}
36... Nxf3 {[%clk 0:00:09.5]} 37. R1e2 {[%clk 0:00:01]} 37... Nxe5+ {[%clk
0:00:09]} 0-1

[Event "*** Titled Tuesday Blitz"]
[Site "Chess.com"]
[Date "2020.10.27"]
[Round "8"]
[White "TimofeevAr"]
[Black "AndrewMaco"]
[Result "1-0"]
[WhiteElo "2782"]
[BlackElo "2658"]
[TimeControl "180+1"]
[EndTime "11:29:25 PDT"]
[Termination "TimofeevAr won on time"]

1. c4 {[%clk 0:03:00.9]} 1... e5 {[%clk 0:02:57.9]} 2. e3 {[%clk 0:03:01]} 2...
Nf6 {[%clk 0:02:57.3]} 3. Nc3 {[%clk 0:03:00.4]} 3... Bb4 {[%clk 0:02:54.8]} 4.
Nge2 {[%clk 0:03:00.1]} 4... O-O {[%clk 0:02:54.2]} 5. a3 {[%clk 0:03:00.1]}
5... Bxc3 {[%clk 0:02:48]} 6. Nxc3 {[%clk 0:02:59.7]} 6... b6 {[%clk 0:02:48.5]}
7. Be2 {[%clk 0:02:56.9]} 7... Bb7 {[%clk 0:02:47.7]} 8. O-O {[%clk 0:02:57.1]}
8... d6 {[%clk 0:02:46.1]} 9. d3 {[%clk 0:02:53.6]} 9... Nbd7 {[%clk 0:02:46.4]}
10. b4 {[%clk 0:02:49]} 10... a5 {[%clk 0:02:38.4]} 11. Bb2 {[%clk 0:02:49]}
11... Qe7 {[%clk 0:02:20.4]} 12. Qd2 {[%clk 0:02:40.9]} 12... axb4 {[%clk
0:02:20.3]} 13. axb4 {[%clk 0:02:40.9]} 13... Rxa1 {[%clk 0:02:20.5]} 14. Rxa1
{[%clk 0:02:40.6]} 14... Ra8 {[%clk 0:02:21.2]} 15. Qd1 {[%clk 0:02:36.5]} 15...
Qd8 {[%clk 0:02:18.1]} 16. Bf1 {[%clk 0:02:34.3]} 16... h6 {[%clk 0:02:16.4]}
17. h3 {[%clk 0:02:34]} 17... Nf8 {[%clk 0:02:14.8]} 18. Nb5 {[%clk 0:02:31.1]}
18... Ne6 {[%clk 0:02:12.1]} 19. d4 {[%clk 0:02:24.5]} 19... exd4 {[%clk
0:02:01.8]} 20. Nxd4 {[%clk 0:02:16.3]} 20... Nxd4 {[%clk 0:01:59.2]} 21. Qxd4
{[%clk 0:02:15.9]} 21... c5 {[%clk 0:01:56.9]} 22. bxc5 {[%clk 0:02:12.2]} 22...
bxc5 {[%clk 0:01:57.8]} 23. Qh4 {[%clk 0:02:08.1]} 23... Rxa1 {[%clk 0:01:55.3]}
24. Bxa1 {[%clk 0:02:07.9]} 24... Qe7 {[%clk 0:01:54.7]} 25. Qf4 {[%clk
0:01:47.8]} 25... Nd7 {[%clk 0:01:44.4]} 26. Be2 {[%clk 0:01:43.3]} 26... Ne5
{[%clk 0:01:43.4]} 27. f3 {[%clk 0:01:36.7]} 27... Bc6 {[%clk 0:01:39.6]} 28.
Kf2 {[%clk 0:01:36.4]} 28... g5 {[%clk 0:01:29.8]} 29. Qf5 {[%clk 0:01:35.7]}
29... Bd7 {[%clk 0:01:27.3]} 30. Qe4 {[%clk 0:01:34.7]} 30... Bc6 {[%clk
0:01:05.9]} 31. Qb1 {[%clk 0:01:31.9]} 31... f6 {[%clk 0:00:57.2]} 32. f4 {[%clk
0:01:25.2]} 32... gxf4 {[%clk 0:00:43.1]} 33. exf4 {[%clk 0:01:24.9]} 33... Qg7
{[%clk 0:00:42.7]} 34. g4 {[%clk 0:01:20.1]} 34... Nd7 {[%clk 0:00:37.1]} 35.
Qf5 {[%clk 0:01:16]} 35... Qf7 {[%clk 0:00:34]} 36. Bd3 {[%clk 0:01:14.3]} 36...
Qe7 {[%clk 0:00:19.6]} 37. Bc3 {[%clk 0:01:10.2]} 37... Qf7 {[%clk 0:00:19.4]}
38. h4 {[%clk 0:01:10.2]} 38... Qe7 {[%clk 0:00:19.5]} 39. Qg6+ {[%clk 0:01:09]}
39... Qg7 {[%clk 0:00:19.3]} 40. Qf5 {[%clk 0:00:57.9]} 40... Qf7 {[%clk
0:00:18.6]} 41. h5 {[%clk 0:00:46.5]} 41... Qg7 {[%clk 0:00:18.2]} 42. Kg3
{[%clk 0:00:43.9]} 42... Qe7 {[%clk 0:00:18.1]} 43. Qg6+ {[%clk 0:00:44.1]}
43... Qg7 {[%clk 0:00:18]} 44. Qxg7+ {[%clk 0:00:40.6]} 44... Kxg7 {[%clk
0:00:18.9]} 45. g5 {[%clk 0:00:41.1]} 45... hxg5 {[%clk 0:00:19.3]} 46. fxg5
{[%clk 0:00:41.3]} 46... Ne5 {[%clk 0:00:19.5]} 47. h6+ {[%clk 0:00:41.7]} 47...
Kf7 {[%clk 0:00:18.4]} 48. Bxe5 {[%clk 0:00:41.2]} 48... fxe5 {[%clk 0:00:08.3]}
49. g6+ {[%clk 0:00:39.3]} 49... Kg8 {[%clk 0:00:05.4]} 50. Bf5 {[%clk
0:00:37.3]} 1-0

[Event "*** Titled Tuesday Blitz"]
[Site "Chess.com"]
[Date "2020.10.27"]
[Round "8"]
[White "Training_Day"]
[Black "Resignify"]
[Result "1-0"]
[WhiteElo "2393"]
[BlackElo "2188"]
[TimeControl "180+1"]
[EndTime "11:29:28 PDT"]
[Termination "Training_Day won on time"]

1. e4 {[%clk 0:03:00.9]} 1... c5 {[%clk 0:02:58.9]} 2. Nf3 {[%clk 0:02:59.6]}
2... Nc6 {[%clk 0:02:59.1]} 3. d4 {[%clk 0:02:57.2]} 3... cxd4 {[%clk
0:02:59.3]} 4. Nxd4 {[%clk 0:02:58.1]} 4... Nf6 {[%clk 0:02:58.6]} 5. Nc3 {[%clk
0:02:58.5]} 5... e5 {[%clk 0:02:59.2]} 6. Ndb5 {[%clk 0:02:57.6]} 6... d6 {[%clk
0:02:59.6]} 7. Bg5 {[%clk 0:02:55.4]} 7... a6 {[%clk 0:02:56.9]} 8. Na3 {[%clk
0:02:55.2]} 8... b5 {[%clk 0:02:55.1]} 9. Bxf6 {[%clk 0:02:52.9]} 9... gxf6
{[%clk 0:02:42.7]} 10. Nd5 {[%clk 0:02:52.8]} 10... f5 {[%clk 0:02:39.7]} 11. c3
{[%clk 0:02:52.2]} 11... Be7 {[%clk 0:02:18.4]} 12. exf5 {[%clk 0:02:42.8]}
12... Bxf5 {[%clk 0:02:11.4]} 13. Nc2 {[%clk 0:02:41.8]} 13... O-O {[%clk
0:01:56.3]} 14. Nce3 {[%clk 0:02:27.9]} 14... Be6 {[%clk 0:01:53.5]} 15. g3
{[%clk 0:02:07.9]} 15... f5 {[%clk 0:01:44]} 16. Bg2 {[%clk 0:02:07.3]} 16...
Kh8 {[%clk 0:01:32.9]} 17. O-O {[%clk 0:01:55.4]} 17... Ra7 {[%clk 0:01:11.8]}
18. f4 {[%clk 0:01:51.6]} 18... e4 {[%clk 0:01:04.6]} 19. a4 {[%clk 0:01:50.2]}
19... bxa4 {[%clk 0:00:48]} 20. Qxa4 {[%clk 0:01:47.1]} 20... Qd7 {[%clk
0:00:41.2]} 21. Rfd1 {[%clk 0:01:40.4]} 21... Bd8 {[%clk 0:00:38.5]} 22. Kh1
{[%clk 0:01:27]} 22... a5 {[%clk 0:00:35.3]} 23. Nc4 {[%clk 0:01:13.8]} 23...
Rb7 {[%clk 0:00:26.4]} 24. Ra2 {[%clk 0:00:44.4]} 24... Rf7 {[%clk 0:00:24.7]}
25. h3 {[%clk 0:00:16.7]} 25... Qc8 {[%clk 0:00:20.2]} 26. Kh2 {[%clk
0:00:16.2]} 26... Qa8 {[%clk 0:00:16.3]} 27. Nxd6 {[%clk 0:00:15.4]} 27... Rbd7
{[%clk 0:00:13.8]} 28. Nxf7+ {[%clk 0:00:14.8]} 28... Bxf7 {[%clk 0:00:13]} 29.
Ne3 {[%clk 0:00:14.2]} 29... Rxd1 {[%clk 0:00:11.4]} 30. Qxd1 {[%clk 0:00:14.8]}
30... Bxa2 {[%clk 0:00:11]} 31. Nxf5 {[%clk 0:00:12.9]} 31... Be6 {[%clk
0:00:09.3]} 32. Bxe4 {[%clk 0:00:11.3]} 32... Bxf5 {[%clk 0:00:07]} 33. Bxf5
{[%clk 0:00:05.8]} 33... Qb8 {[%clk 0:00:03.7]} 34. Be4 {[%clk 0:00:04.9]} 34...
Qxb2+ {[%clk 0:00:03.3]} 35. Kh1 {[%clk 0:00:02.8]} 35... Qb6 {[%clk 0:00:01.7]}
36. Bf3 {[%clk 0:00:01.9]} 36... Be7 {[%clk 0:00:01.4]} 37. Qd5 {[%clk
0:00:01.4]} 1-0

[Event "*** Titled Tuesday Blitz"]
[Site "Chess.com"]
[Date "2020.10.27"]
[Round "8"]
[White "Ze-Pequeno"]
[Black "Mikhail_Golubev"]
[Result "0-1"]
[WhiteElo "2324"]
[BlackElo "2520"]
[TimeControl "180+1"]
[EndTime "11:29:29 PDT"]
[Termination "Mikhail_Golubev won on time"]

1. e4 {[%clk 0:03:00.9]} 1... c5 {[%clk 0:02:59.5]} 2. Nf3 {[%clk 0:03:00.6]}
2... d6 {[%clk 0:02:59.7]} 3. d4 {[%clk 0:03:00.6]} 3... Nf6 {[%clk 0:02:59.8]}
4. Nc3 {[%clk 0:03:00.1]} 4... cxd4 {[%clk 0:02:59.8]} 5. Nxd4 {[%clk 0:03:01]}
5... Nc6 {[%clk 0:02:59.5]} 6. Bg5 {[%clk 0:03:00.3]} 6... e6 {[%clk 0:02:59.7]}
7. Qd2 {[%clk 0:03:00.1]} 7... a6 {[%clk 0:03:00.2]} 8. O-O-O {[%clk 0:02:59.7]}
8... Bd7 {[%clk 0:03:00.8]} 9. f4 {[%clk 0:02:57.3]} 9... Be7 {[%clk 0:02:59.3]}
10. Nf3 {[%clk 0:02:55.3]} 10... b5 {[%clk 0:02:58.5]} 11. Bxf6 {[%clk
0:02:55.3]} 11... gxf6 {[%clk 0:02:56.6]} 12. Bd3 {[%clk 0:02:54.1]} 12... Qb6
{[%clk 0:02:55.7]} 13. Kb1 {[%clk 0:02:52.5]} 13... O-O-O {[%clk 0:02:54.6]} 14.
f5 {[%clk 0:02:49.7]} 14... Ne5 {[%clk 0:02:49.7]} 15. Rhf1 {[%clk 0:02:35.7]}
15... Kb8 {[%clk 0:02:47.8]} 16. Ne2 {[%clk 0:02:10.6]} 16... Nc4 {[%clk
0:02:16]} 17. Bxc4 {[%clk 0:02:07]} 17... bxc4 {[%clk 0:02:16.9]} 18. fxe6
{[%clk 0:02:02]} 18... fxe6 {[%clk 0:02:15.1]} 19. Nfd4 {[%clk 0:01:48.3]} 19...
Ka7 {[%clk 0:02:06.5]} 20. Nf4 {[%clk 0:01:34.2]} 20... d5 {[%clk 0:01:40]} 21.
exd5 {[%clk 0:00:57.4]} 21... e5 {[%clk 0:01:39.6]} 22. d6 {[%clk 0:00:57.1]}
22... Bxd6 {[%clk 0:01:21]} 23. Nd5 {[%clk 0:00:30]} 23... Qxd4 {[%clk
0:01:20.9]} 24. Nxf6 {[%clk 0:00:29.7]} 24... Bc6 {[%clk 0:01:15]} 25. Qh6
{[%clk 0:00:21.5]} 25... Qb6 {[%clk 0:00:41.1]} 26. Nxh7 {[%clk 0:00:14.7]}
26... c3 {[%clk 0:00:37.2]} 27. b3 {[%clk 0:00:14.6]} 27... Qb4 {[%clk 0:00:37]}
28. Rf7+ {[%clk 0:00:11.9]} 28... Bb7 {[%clk 0:00:36.3]} 29. Qe3+ {[%clk
0:00:11.3]} 29... Bc5 {[%clk 0:00:35.6]} 30. Qe1 {[%clk 0:00:09.2]} 30... Rxd1+
{[%clk 0:00:30.6]} 31. Qxd1 {[%clk 0:00:08.9]} 31... Qa3 {[%clk 0:00:22.9]} 32.
Qc1 {[%clk 0:00:08.2]} 32... Qxc1+ {[%clk 0:00:22.8]} 33. Kxc1 {[%clk
0:00:09.1]} 33... Rd8 {[%clk 0:00:22.5]} 34. a4 {[%clk 0:00:07.7]} 34... Ba3+
{[%clk 0:00:20.2]} 35. Kb1 {[%clk 0:00:07.3]} 35... Rd1+ {[%clk 0:00:19.8]} 36.
Ka2 {[%clk 0:00:07.5]} 36... Bb4 {[%clk 0:00:14.9]} 37. Ng5 {[%clk 0:00:03.9]}
37... Rd2 {[%clk 0:00:14.7]} 38. Kb1 {[%clk 0:00:03.2]} 38... Rxg2 {[%clk
0:00:14.1]} 39. Ne6 {[%clk 0:00:02.7]} 39... Kb6 {[%clk 0:00:12.7]} 40. Nd8
{[%clk 0:00:01.7]} 40... Be4 {[%clk 0:00:12.3]} 0-1

[Event "*** Titled Tuesday Blitz"]
[Site "Chess.com"]
[Date "2020.10.27"]
[Round "8"]
[White "TheSodabread"]
[Black "tylityli"]
[Result "0-1"]
[WhiteElo "1915"]
[BlackElo "2234"]
[TimeControl "180+1"]
[EndTime "11:29:29 PDT"]
[Termination "tylityli won on time"]

1. d4 {[%clk 0:03:00.9]} 1... Nf6 {[%clk 0:02:44.1]} 2. Nc3 {[%clk 0:02:40.8]}
2... d5 {[%clk 0:02:42.7]} 3. Bf4 {[%clk 0:02:40.6]} 3... a6 {[%clk 0:02:41]} 4.
e3 {[%clk 0:02:40.7]} 4... e6 {[%clk 0:02:40.8]} 5. g4 {[%clk 0:02:37.4]} 5...
Bb4 {[%clk 0:02:36.5]} 6. g5 {[%clk 0:02:29.1]} 6... Ne4 {[%clk 0:02:35.9]} 7.
Ne2 {[%clk 0:02:27.6]} 7... Nxg5 {[%clk 0:02:33.5]} 8. Bg2 {[%clk 0:02:25.1]}
8... Ne4 {[%clk 0:02:14.6]} 9. Bxe4 {[%clk 0:02:19.8]} 9... dxe4 {[%clk
0:02:14.5]} 10. a3 {[%clk 0:02:20.7]} 10... Bd6 {[%clk 0:01:44.4]} 11. Rg1
{[%clk 0:02:19.9]} 11... Bxf4 {[%clk 0:01:28]} 12. Nxf4 {[%clk 0:02:20.1]} 12...
g6 {[%clk 0:01:28.1]} 13. h4 {[%clk 0:02:07.8]} 13... Qxh4 {[%clk 0:01:23.8]}
14. Qd2 {[%clk 0:02:04]} 14... Nc6 {[%clk 0:01:21.8]} 15. O-O-O {[%clk
0:02:03.4]} 15... Bd7 {[%clk 0:01:18.7]} 16. d5 {[%clk 0:02:00.6]} 16... exd5
{[%clk 0:01:12.6]} 17. Rh1 {[%clk 0:01:41.3]} 17... Qg5 {[%clk 0:01:07]} 18.
Rdg1 {[%clk 0:01:36.7]} 18... Qe5 {[%clk 0:01:06.1]} 19. Nfxd5 {[%clk
0:01:24.4]} 19... O-O-O {[%clk 0:01:05.5]} 20. Qe1 {[%clk 0:01:17.3]} 20... Be6
{[%clk 0:00:56.1]} 21. Nf4 {[%clk 0:01:04.6]} 21... Bc4 {[%clk 0:00:55.8]} 22.
Rh6 {[%clk 0:01:00.2]} 22... Kb8 {[%clk 0:00:31.5]} 23. Rgh1 {[%clk 0:00:58.5]}
23... Ne7 {[%clk 0:00:31.7]} 24. Rxh7 {[%clk 0:00:55.9]} 24... Rxh7 {[%clk
0:00:32.6]} 25. Rxh7 {[%clk 0:00:55.9]} 25... Nf5 {[%clk 0:00:33.5]} 26. Qh1
{[%clk 0:00:52.4]} 26... Nd6 {[%clk 0:00:33.1]} 27. Rh4 {[%clk 0:00:39.3]} 27...
g5 {[%clk 0:00:32.9]} 28. Rh5 {[%clk 0:00:39.7]} 28... Qe7 {[%clk 0:00:30.4]}
29. Nfe2 {[%clk 0:00:37.6]} 29... f6 {[%clk 0:00:29.1]} 30. Nd4 {[%clk
0:00:37.3]} 30... Qe5 {[%clk 0:00:27.3]} 31. Qh2 {[%clk 0:00:31.2]} 31... Qa5
{[%clk 0:00:21.9]} 32. Qh3 {[%clk 0:00:18.2]} 32... c5 {[%clk 0:00:17.2]} 33.
Ne6 {[%clk 0:00:18.2]} 33... Re8 {[%clk 0:00:14.4]} 34. Ng7 {[%clk 0:00:14.9]}
34... Re7 {[%clk 0:00:13.6]} 35. Rh8+ {[%clk 0:00:12.3]} 35... Ka7 {[%clk
0:00:12.7]} 36. Rh7 {[%clk 0:00:06.5]} 36... Qc7 {[%clk 0:00:10.9]} 37. Qh6
{[%clk 0:00:04.5]} 37... Nf5 {[%clk 0:00:09.3]} 38. Nxf5 {[%clk 0:00:03.7]}
38... Rxh7 {[%clk 0:00:09.5]} 39. Qxf6 {[%clk 0:00:03.1]} 39... Rf7 {[%clk
0:00:09.6]} 40. Qxg5 {[%clk 0:00:01.7]} 40... Qd7 {[%clk 0:00:10.2]} 41. Ng3
{[%clk 0:00:01]} 41... Rxf2 {[%clk 0:00:10]} 0-1